[Event "Late-Titled-Tuesday-Blitz-September-26-2023"]
[Site "Chess.com"]
[Date "2023.09.26"]
[Round "11"]
[White "azikom"]
[Black "rose107"]
[Result "0-1"]
[WhiteElo "2590"]
[BlackElo "2191"]
[TimeControl "180+1"]
[EndTime "16:01:22 PDT"]
[Termination "rose107 won on time"]

1. c4 {[%clk 0:03:00.3]} 1... e6 {[%clk 0:02:33.5]} 2. g3 {[%clk 0:02:38.6]}
2... Nf6 {[%clk 0:02:30.6]} 3. Bg2 {[%clk 0:02:39.5]} 3... d5 {[%clk 0:02:30.7]}
4. Nf3 {[%clk 0:02:39]} 4... c5 {[%clk 0:02:27.9]} 5. O-O {[%clk 0:02:36.7]}
5... Nc6 {[%clk 0:02:26.7]} 6. b3 {[%clk 0:02:31.9]} 6... Be7 {[%clk 0:02:19.2]}
7. Bb2 {[%clk 0:02:30.5]} 7... O-O {[%clk 0:02:19]} 8. e3 {[%clk 0:02:30.3]}
8... b6 {[%clk 0:02:15.2]} 9. Nc3 {[%clk 0:02:21.4]} 9... Bb7 {[%clk 0:02:14.7]}
10. cxd5 {[%clk 0:02:19.2]} 10... exd5 {[%clk 0:02:14.4]} 11. d4 {[%clk
0:02:18.7]} 11... Rc8 {[%clk 0:02:09.7]} 12. dxc5 {[%clk 0:02:12.6]} 12... bxc5
{[%clk 0:02:09.4]} 13. Rc1 {[%clk 0:02:08.4]} 13... Qd7 {[%clk 0:02:05.3]} 14.
Na4 {[%clk 0:01:58.7]} 14... Nb4 {[%clk 0:02:03.1]} 15. Bxf6 {[%clk 0:01:46.9]}
15... gxf6 {[%clk 0:01:58.6]} 16. a3 {[%clk 0:01:40.6]} 16... Na6 {[%clk
0:01:51.7]} 17. Nc3 {[%clk 0:01:29.4]} 17... Rfd8 {[%clk 0:01:48.6]} 18. Ne2
{[%clk 0:01:25.6]} 18... Bf8 {[%clk 0:01:33]} 19. Nf4 {[%clk 0:01:19]} 19... Nc7
{[%clk 0:01:21.5]} 20. Nh4 {[%clk 0:01:11.2]} 20... Ne8 {[%clk 0:01:07.1]} 21.
Bh3 {[%clk 0:00:56.4]} 21... Qc6 {[%clk 0:00:55.8]} 22. Bxc8 {[%clk 0:00:53.9]}
22... Rxc8 {[%clk 0:00:56.7]} 23. Qg4+ {[%clk 0:00:51.4]} 23... Kh8 {[%clk
0:00:56]} 24. Nhg2 {[%clk 0:00:31.7]} 24... c4 {[%clk 0:00:48.9]} 25. bxc4
{[%clk 0:00:31.2]} 25... dxc4 {[%clk 0:00:48.8]} 26. Rfd1 {[%clk 0:00:24.7]}
26... Bxa3 {[%clk 0:00:47.4]} 27. Rc2 {[%clk 0:00:19.4]} 27... Bd6 {[%clk
0:00:35.3]} 28. Qh3 {[%clk 0:00:14.7]} 28... Qf3 {[%clk 0:00:26.4]} 29. Rdc1
{[%clk 0:00:12.8]} 29... Bxf4 {[%clk 0:00:20.5]} 30. e4 {[%clk 0:00:12.4]} 30...
Bxe4 {[%clk 0:00:17.3]} 31. Rc3 {[%clk 0:00:11.1]} 31... Qxg2+ {[%clk
0:00:13.5]} 32. Qxg2 {[%clk 0:00:10.5]} 32... Bxg2 {[%clk 0:00:14.4]} 33. gxf4
{[%clk 0:00:10.5]} 33... Bd5 {[%clk 0:00:14]} 34. Rd1 {[%clk 0:00:10.4]} 34...
Be6 {[%clk 0:00:13.4]} 35. Ra3 {[%clk 0:00:10.2]} 35... Nc7 {[%clk 0:00:09.3]}
36. Rxa7 {[%clk 0:00:09.6]} 36... Nb5 {[%clk 0:00:09.9]} 37. Rb7 {[%clk
0:00:09.2]} 37... Nc3 {[%clk 0:00:10.1]} 38. Ra1 {[%clk 0:00:08.9]} 38... Ne4
{[%clk 0:00:09.2]} 39. f3 {[%clk 0:00:08.8]} 39... Nd2 {[%clk 0:00:09]} 40. Kf2
{[%clk 0:00:08.2]} 40... c3 {[%clk 0:00:09.3]} 41. Rc1 {[%clk 0:00:08.1]} 41...
Nb3 {[%clk 0:00:09.4]} 42. Rc2 {[%clk 0:00:07.9]} 42... Nd4 {[%clk 0:00:09.8]}
43. Rc1 {[%clk 0:00:07.8]} 43... c2 {[%clk 0:00:10.3]} 44. Rb2 {[%clk
0:00:07.1]} 44... Bf5 {[%clk 0:00:10.7]} 45. Ke3 {[%clk 0:00:06.7]} 45... Ne6
{[%clk 0:00:08.8]} 46. Rb4 {[%clk 0:00:05.7]} 46... Nc5 {[%clk 0:00:07.9]} 47.
Rc4 {[%clk 0:00:04.4]} 47... Re8+ {[%clk 0:00:06.7]} 0-1

[Event "Late-Titled-Tuesday-Blitz-September-26-2023"]
[Site "Chess.com"]
[Date "2023.09.26"]
[Round "11"]
[White "IgorBjelobrk"]
[Black "Iball95"]
[Result "0-1"]
[WhiteElo "2635"]
[BlackElo "2762"]
[TimeControl "180+1"]
[EndTime "16:01:23 PDT"]
[Termination "Iball95 won on time"]

1. d4 {[%clk 0:03:00.9]} 1... d5 {[%clk 0:02:58.3]} 2. c4 {[%clk 0:03:01]} 2...
e6 {[%clk 0:02:58.8]} 3. Nf3 {[%clk 0:03:01.2]} 3... Nf6 {[%clk 0:02:59]} 4. g3
{[%clk 0:03:01.3]} 4... c5 {[%clk 0:02:59.2]} 5. cxd5 {[%clk 0:03:01.2]} 5...
cxd4 {[%clk 0:02:59.6]} 6. Qxd4 {[%clk 0:02:59.2]} 6... exd5 {[%clk 0:02:58.5]}
7. Bg2 {[%clk 0:02:54]} 7... Nc6 {[%clk 0:02:58.1]} 8. Qd1 {[%clk 0:02:54.2]}
8... Bc5 {[%clk 0:02:53.6]} 9. O-O {[%clk 0:02:54.1]} 9... O-O {[%clk 0:02:54]}
10. Nbd2 {[%clk 0:02:51.9]} 10... h6 {[%clk 0:02:51.6]} 11. Nb3 {[%clk 0:02:52]}
11... Bb6 {[%clk 0:02:51.6]} 12. Nbd4 {[%clk 0:02:52.2]} 12... Re8 {[%clk
0:02:52.4]} 13. b3 {[%clk 0:02:50.5]} 13... Ne4 {[%clk 0:02:51]} 14. Bb2 {[%clk
0:02:50.1]} 14... Bg4 {[%clk 0:02:51.1]} 15. Rc1 {[%clk 0:02:48.7]} 15... Rc8
{[%clk 0:02:51.1]} 16. Nxc6 {[%clk 0:02:43.8]} 16... bxc6 {[%clk 0:02:49.8]} 17.
Ne5 {[%clk 0:02:41.2]} 17... Nxf2 {[%clk 0:02:25.3]} 18. Rxf2 {[%clk 0:02:36.8]}
18... Bxf2+ {[%clk 0:02:25.5]} 19. Kxf2 {[%clk 0:02:37.7]} 19... Qf6+ {[%clk
0:02:26.3]} 20. Bf3 {[%clk 0:01:51.7]} 20... Bxf3 {[%clk 0:02:04]} 21. exf3
{[%clk 0:01:51.4]} 21... Rxe5 {[%clk 0:02:00.2]} 22. f4 {[%clk 0:01:51.7]} 22...
d4 {[%clk 0:01:49]} 23. Bxd4 {[%clk 0:00:59.6]} 23... Rd8 {[%clk 0:01:47.9]} 24.
Bxe5 {[%clk 0:00:59.9]} 24... Rxd1 {[%clk 0:01:44.5]} 25. Rxd1 {[%clk
0:01:00.1]} 25... Qf5 {[%clk 0:01:31.3]} 26. Rd2 {[%clk 0:00:47.1]} 26... f6
{[%clk 0:01:30.7]} 27. Bd4 {[%clk 0:00:46.8]} 27... a6 {[%clk 0:01:27.5]} 28.
Be3 {[%clk 0:00:46]} 28... h5 {[%clk 0:01:25.8]} 29. h4 {[%clk 0:00:41.7]} 29...
Kh7 {[%clk 0:01:24.2]} 30. b4 {[%clk 0:00:24.5]} 30... Kg6 {[%clk 0:01:22.2]}
31. Bc5 {[%clk 0:00:23.9]} 31... Qe6 {[%clk 0:01:17.7]} 32. Re2 {[%clk
0:00:23.1]} 32... Qd5 {[%clk 0:01:14.3]} 33. a3 {[%clk 0:00:20.6]} 33... Kf5
{[%clk 0:01:13.8]} 34. Re3 {[%clk 0:00:20.7]} 34... Kg4 {[%clk 0:01:13.4]} 35.
Ke2 {[%clk 0:00:15.4]} 35... a5 {[%clk 0:01:13]} 36. Kf2 {[%clk 0:00:15.2]}
36... a4 {[%clk 0:01:09.1]} 37. Ke2 {[%clk 0:00:15.4]} 37... Qa2+ {[%clk
0:01:08.2]} 38. Kf1 {[%clk 0:00:14.4]} 38... Qc2 {[%clk 0:01:07.5]} 39. Ke1
{[%clk 0:00:14.5]} 39... Kh3 {[%clk 0:01:06.4]} 40. Kf1 {[%clk 0:00:14.9]} 40...
Qd1+ {[%clk 0:01:04.2]} 41. Kf2 {[%clk 0:00:15.1]} 41... Kg4 {[%clk 0:01:01.6]}
42. Kg2 {[%clk 0:00:14.6]} 42... Qd2+ {[%clk 0:01:00.9]} 43. Kf1 {[%clk
0:00:15]} 43... Kh3 {[%clk 0:00:48.2]} 44. Bb6 {[%clk 0:00:15.4]} 44... Qg2+
{[%clk 0:00:41.1]} 45. Ke1 {[%clk 0:00:15.8]} 45... Qh1+ {[%clk 0:00:40.1]} 46.
Kf2 {[%clk 0:00:15.9]} 46... Qh2+ {[%clk 0:00:34.8]} 47. Kf1 {[%clk 0:00:15.8]}
47... Kg4 {[%clk 0:00:33.7]} 48. Bc5 {[%clk 0:00:15.6]} 48... Qh1+ {[%clk
0:00:33.8]} 49. Kf2 {[%clk 0:00:15.6]} 49... g6 {[%clk 0:00:33.9]} 50. Bb6
{[%clk 0:00:15.5]} 50... Qh2+ {[%clk 0:00:30.9]} 51. Kf1 {[%clk 0:00:15.9]}
51... Qc2 {[%clk 0:00:29.6]} 52. Bc5 {[%clk 0:00:16.2]} 52... Qf5 {[%clk
0:00:28.7]} 53. Kf2 {[%clk 0:00:14.7]} 53... g5 {[%clk 0:00:28.4]} 54. hxg5
{[%clk 0:00:14.3]} 54... fxg5 {[%clk 0:00:28.7]} 55. Bd6 {[%clk 0:00:07.7]}
55... h4 {[%clk 0:00:26.5]} 56. gxh4 {[%clk 0:00:06.7]} 56... gxh4 {[%clk
0:00:27.2]} 57. Be5 {[%clk 0:00:04.9]} 57... Qc2+ {[%clk 0:00:26.7]} 58. Kg1
{[%clk 0:00:04.6]} 58... h3 {[%clk 0:00:25.8]} 0-1

[Event "Late-Titled-Tuesday-Blitz-September-26-2023"]
[Site "Chess.com"]
[Date "2023.09.26"]
[Round "11"]
[White "MMSANCHEZ"]
[Black "Mikhail_Bryakin"]
[Result "1-0"]
[WhiteElo "2715"]
[BlackElo "2838"]
[TimeControl "180+1"]
[EndTime "16:01:39 PDT"]
[Termination "MMSANCHEZ won by checkmate"]

1. d4 {[%clk 0:03:00.9]} 1... Nf6 {[%clk 0:02:56.9]} 2. Nf3 {[%clk 0:02:58.3]}
2... g6 {[%clk 0:02:55.7]} 3. c4 {[%clk 0:02:57.7]} 3... c5 {[%clk 0:02:56.1]}
4. d5 {[%clk 0:02:57.5]} 4... d6 {[%clk 0:02:56.8]} 5. Nc3 {[%clk 0:02:57.6]}
5... Bg7 {[%clk 0:02:57.5]} 6. e4 {[%clk 0:02:57.6]} 6... O-O {[%clk 0:02:58.2]}
7. h3 {[%clk 0:02:57.7]} 7... e6 {[%clk 0:02:58.9]} 8. Bd3 {[%clk 0:02:57.8]}
8... exd5 {[%clk 0:02:59.6]} 9. exd5 {[%clk 0:02:58.1]} 9... Re8+ {[%clk
0:03:00.3]} 10. Be3 {[%clk 0:02:58.5]} 10... Rxe3+ {[%clk 0:03:01]} 11. fxe3
{[%clk 0:02:58.7]} 11... Qe7 {[%clk 0:03:01.2]} 12. O-O {[%clk 0:02:57.9]} 12...
Nbd7 {[%clk 0:02:57]} 13. Qe1 {[%clk 0:02:56.8]} 13... Nh5 {[%clk 0:02:54.9]}
14. g4 {[%clk 0:02:48.3]} 14... Nhf6 {[%clk 0:02:55]} 15. Qf2 {[%clk 0:02:46.2]}
15... Ne5 {[%clk 0:02:54.4]} 16. Nxe5 {[%clk 0:02:43.9]} 16... Qxe5 {[%clk
0:02:55.3]} 17. Qf4 {[%clk 0:02:40.7]} 17... Qe7 {[%clk 0:02:53.6]} 18. Rae1
{[%clk 0:02:27.4]} 18... Nd7 {[%clk 0:02:53.2]} 19. Ne4 {[%clk 0:02:21.2]} 19...
Ne5 {[%clk 0:02:50]} 20. Be2 {[%clk 0:02:18.6]} 20... Bd7 {[%clk 0:02:49.3]} 21.
Nf6+ {[%clk 0:02:16.3]} 21... Kh8 {[%clk 0:02:30.8]} 22. Kg2 {[%clk 0:02:14.9]}
22... a6 {[%clk 0:02:28.7]} 23. g5 {[%clk 0:02:05.1]} 23... b5 {[%clk
0:02:25.4]} 24. h4 {[%clk 0:02:05.4]} 24... bxc4 {[%clk 0:02:16.3]} 25. h5
{[%clk 0:02:05.6]} 25... Rf8 {[%clk 0:01:59.6]} 26. Rh1 {[%clk 0:01:59.2]} 26...
Bxf6 {[%clk 0:01:52.4]} 27. gxf6 {[%clk 0:01:59.2]} 27... Qd8 {[%clk 0:01:53]}
28. hxg6 {[%clk 0:01:46.9]} 28... fxg6 {[%clk 0:01:40.9]} 29. Rxh7+ {[%clk
0:01:38.3]} 29... Kxh7 {[%clk 0:01:41.8]} 30. Rh1+ {[%clk 0:01:33.7]} 30... Kg8
{[%clk 0:01:42.2]} 31. Qh6 {[%clk 0:01:14.9]} 31... Kf7 {[%clk 0:01:42.2]} 32.
Qg7+ {[%clk 0:01:10.7]} 32... Ke8 {[%clk 0:01:42.7]} 33. Rh8 {[%clk 0:01:06.1]}
33... Bh3+ {[%clk 0:01:19.6]} 34. Kg1 {[%clk 0:00:54.2]} 34... Rxh8 {[%clk
0:01:16.9]} 35. Qxh8+ {[%clk 0:00:53.7]} 35... Kd7 {[%clk 0:01:17.5]} 36. Qxh3+
{[%clk 0:00:48.1]} 36... Kc7 {[%clk 0:01:17.7]} 37. Qe6 {[%clk 0:00:47.2]} 37...
Nd7 {[%clk 0:01:07.4]} 38. f7 {[%clk 0:00:41.8]} 38... Qg5+ {[%clk 0:01:07.2]}
39. Kf2 {[%clk 0:00:40.2]} 39... Qh4+ {[%clk 0:01:01]} 40. Kf1 {[%clk
0:00:40.1]} 40... Qh8 {[%clk 0:00:51.3]} 41. Qe7 {[%clk 0:00:33.4]} 41... Qf8
{[%clk 0:00:50.2]} 42. Qe8 {[%clk 0:00:29.9]} 42... Qh6 {[%clk 0:00:40.5]} 43.
Bg4 {[%clk 0:00:24.1]} 43... Qh1+ {[%clk 0:00:38.7]} 44. Kf2 {[%clk 0:00:23.9]}
44... Qh2+ {[%clk 0:00:39.4]} 45. Kf3 {[%clk 0:00:21.3]} 45... Qh1+ {[%clk
0:00:32.9]} 46. Kf4 {[%clk 0:00:18.8]} 46... Qh6+ {[%clk 0:00:24.5]} 47. Kg3
{[%clk 0:00:17.8]} 47... Nf8 {[%clk 0:00:19.3]} 48. Qe7+ {[%clk 0:00:16.7]}
48... Kb6 {[%clk 0:00:20.2]} 49. Qxd6+ {[%clk 0:00:16.4]} 49... Kb5 {[%clk
0:00:20.9]} 50. Bd7+ {[%clk 0:00:12.6]} 50... Nxd7 {[%clk 0:00:21.5]} 51. Qxd7+
{[%clk 0:00:12.8]} 51... Kb4 {[%clk 0:00:22.4]} 52. Qb7+ {[%clk 0:00:09.6]}
52... Ka5 {[%clk 0:00:23]} 53. Qc7+ {[%clk 0:00:09.7]} 53... Kb4 {[%clk
0:00:20.5]} 54. Qb6+ {[%clk 0:00:09.3]} 54... Ka4 {[%clk 0:00:21.1]} 55. Qxa6+
{[%clk 0:00:09.7]} 55... Kb4 {[%clk 0:00:21.8]} 56. Qb7+ {[%clk 0:00:09.9]}
56... Ka4 {[%clk 0:00:22]} 57. Qa8+ {[%clk 0:00:10.3]} 57... Kb4 {[%clk
0:00:21.5]} 58. f8=Q {[%clk 0:00:10.6]} 58... Qxe3+ {[%clk 0:00:22.1]} 59. Qf3
{[%clk 0:00:09.6]} 59... Qg1+ {[%clk 0:00:22.7]} 60. Qg2 {[%clk 0:00:09.5]}
60... Qe3+ {[%clk 0:00:22.9]} 61. Kh2 {[%clk 0:00:09]} 61... Qf4+ {[%clk
0:00:23.2]} 62. Qg3 {[%clk 0:00:09.2]} 62... Qd2+ {[%clk 0:00:23.5]} 63. Kh3
{[%clk 0:00:08.9]} 63... Qh6+ {[%clk 0:00:24.1]} 64. Kg2 {[%clk 0:00:09.3]}
64... Qd2+ {[%clk 0:00:24.3]} 65. Qf2 {[%clk 0:00:10]} 65... Qg5+ {[%clk
0:00:25]} 66. Kh2 {[%clk 0:00:09.9]} 66... Qh6+ {[%clk 0:00:25]} 67. Kg1 {[%clk
0:00:10.1]} 67... Qg5+ {[%clk 0:00:25.6]} 68. Kf1 {[%clk 0:00:10.5]} 68... c3
{[%clk 0:00:21]} 69. bxc3+ {[%clk 0:00:10.4]} 69... Kc4 {[%clk 0:00:21.1]} 70.
Qa6+ {[%clk 0:00:10.3]} 70... Kxc3 {[%clk 0:00:20.9]} 71. Qa3+ {[%clk
0:00:10.5]} 71... Kc4 {[%clk 0:00:21.2]} 72. Qb3# {[%clk 0:00:10.8]} 1-0

[Event "Late-Titled-Tuesday-Blitz-September-26-2023"]
[Site "Chess.com"]
[Date "2023.09.26"]
[Round "11"]
[White "Kombinator01"]
[Black "CheckThis4"]
[Result "1/2-1/2"]
[WhiteElo "2470"]
[BlackElo "2692"]
[TimeControl "180+1"]
[EndTime "16:01:49 PDT"]
[Termination "Game drawn - insufficient material"]

1. d4 {[%clk 0:02:56.7]} 1... Nf6 {[%clk 0:02:59.3]} 2. Bf4 {[%clk 0:02:57.2]}
2... d5 {[%clk 0:02:53.7]} 3. e3 {[%clk 0:02:56.8]} 3... c5 {[%clk 0:02:53.5]}
4. Nd2 {[%clk 0:02:55.4]} 4... Nc6 {[%clk 0:02:52.5]} 5. Ngf3 {[%clk 0:02:55.7]}
5... cxd4 {[%clk 0:02:45.4]} 6. exd4 {[%clk 0:02:55.6]} 6... Qb6 {[%clk
0:02:39.1]} 7. Nb3 {[%clk 0:02:53.5]} 7... Bf5 {[%clk 0:02:38.3]} 8. a4 {[%clk
0:02:38.3]} 8... a6 {[%clk 0:02:23.7]} 9. a5 {[%clk 0:02:26.1]} 9... Qd8 {[%clk
0:02:22.9]} 10. Nc5 {[%clk 0:02:21.1]} 10... Nxa5 {[%clk 0:01:47]} 11. c3 {[%clk
0:02:05.3]} 11... e6 {[%clk 0:01:43.8]} 12. Qa4+ {[%clk 0:02:03.6]} 12... b5
{[%clk 0:01:20.8]} 13. Qxa5 {[%clk 0:01:58.9]} 13... Bxc5 {[%clk 0:01:04.3]} 14.
dxc5 {[%clk 0:01:52]} 14... Ne4 {[%clk 0:00:53.9]} 15. Bxb5+ {[%clk 0:01:40.3]}
15... Ke7 {[%clk 0:00:52.1]} 16. Qxd8+ {[%clk 0:01:18.1]} 16... Rhxd8 {[%clk
0:00:53]} 17. Be2 {[%clk 0:01:09]} 17... Nxc5 {[%clk 0:00:50.6]} 18. O-O {[%clk
0:01:05]} 18... f6 {[%clk 0:00:48.7]} 19. b4 {[%clk 0:01:03.6]} 19... Ne4 {[%clk
0:00:46.2]} 20. Rxa6 {[%clk 0:00:53.9]} 20... Nxc3 {[%clk 0:00:41.2]} 21. Bd6+
{[%clk 0:00:43.6]} 21... Kd7 {[%clk 0:00:23.5]} 22. Rxa8 {[%clk 0:00:39.3]}
22... Nxe2+ {[%clk 0:00:21.9]} 23. Kh1 {[%clk 0:00:39.7]} 23... Rxa8 {[%clk
0:00:22.5]} 24. Bc5 {[%clk 0:00:40.2]} 24... Nf4 {[%clk 0:00:20.4]} 25. Nd4
{[%clk 0:00:36.7]} 25... Be4 {[%clk 0:00:19.6]} 26. f3 {[%clk 0:00:37.1]} 26...
Bd3 {[%clk 0:00:19.1]} 27. Rd1 {[%clk 0:00:36.3]} 27... Bc4 {[%clk 0:00:19]} 28.
g3 {[%clk 0:00:35.9]} 28... Nd3 {[%clk 0:00:19]} 29. Rb1 {[%clk 0:00:27.8]}
29... e5 {[%clk 0:00:18]} 30. Nf5 {[%clk 0:00:27]} 30... Nxc5 {[%clk 0:00:17.4]}
31. bxc5 {[%clk 0:00:27.2]} 31... Kc6 {[%clk 0:00:18]} 32. Nxg7 {[%clk
0:00:27.4]} 32... Kxc5 {[%clk 0:00:18.2]} 33. Ne6+ {[%clk 0:00:28.1]} 33... Kd6
{[%clk 0:00:17.9]} 34. Ng7 {[%clk 0:00:27.7]} 34... d4 {[%clk 0:00:17.6]} 35.
Nf5+ {[%clk 0:00:27.4]} 35... Ke6 {[%clk 0:00:17.2]} 36. g4 {[%clk 0:00:27.1]}
36... Bd5 {[%clk 0:00:16.9]} 37. Rb6+ {[%clk 0:00:25.9]} 37... Kf7 {[%clk
0:00:15.9]} 38. Rd6 {[%clk 0:00:24.3]} 38... Bxf3+ {[%clk 0:00:15.1]} 39. Kg1
{[%clk 0:00:24.8]} 39... e4 {[%clk 0:00:13.4]} 40. Nxd4 {[%clk 0:00:21.7]} 40...
Bxg4 {[%clk 0:00:12.9]} 41. Kf2 {[%clk 0:00:21.7]} 41... f5 {[%clk 0:00:12.4]}
42. Kg3 {[%clk 0:00:21]} 42... h5 {[%clk 0:00:11.8]} 43. Rb6 {[%clk 0:00:20.5]}
43... Ra3+ {[%clk 0:00:11.2]} 44. Kf4 {[%clk 0:00:20.3]} 44... e3 {[%clk
0:00:11.7]} 45. Rb7+ {[%clk 0:00:17.6]} 45... Ke8 {[%clk 0:00:11.3]} 46. Rb8+
{[%clk 0:00:17.2]} 46... Kd7 {[%clk 0:00:11.1]} 47. Rb7+ {[%clk 0:00:17.8]}
47... Kc8 {[%clk 0:00:11.3]} 48. Re7 {[%clk 0:00:17.8]} 48... e2 {[%clk
0:00:10.9]} 49. Nxe2 {[%clk 0:00:17.6]} 49... Rf3+ {[%clk 0:00:10.5]} 50. Kg5
{[%clk 0:00:17.2]} 50... Rf2 {[%clk 0:00:10.9]} 51. Nd4 {[%clk 0:00:13.2]} 51...
Rxh2 {[%clk 0:00:10.9]} 52. Nc6 {[%clk 0:00:13.4]} 52... Ra2 {[%clk 0:00:09.3]}
53. Na7+ {[%clk 0:00:13.4]} 53... Kb8 {[%clk 0:00:08.5]} 54. Nc6+ {[%clk
0:00:13.8]} 54... Ka8 {[%clk 0:00:09]} 55. Rg7 {[%clk 0:00:11]} 55... Ra6 {[%clk
0:00:08.7]} 56. Nb4 {[%clk 0:00:09.9]} 56... Rb6 {[%clk 0:00:08.4]} 57. Nd5
{[%clk 0:00:10.5]} 57... Rb7 {[%clk 0:00:07.5]} 58. Rg8+ {[%clk 0:00:08.9]}
58... Ka7 {[%clk 0:00:08]} 59. Rg6 {[%clk 0:00:09.2]} 59... Rd7 {[%clk
0:00:06.7]} 60. Nf6 {[%clk 0:00:08.2]} 60... Rb7 {[%clk 0:00:06.2]} 61. Nxh5
{[%clk 0:00:08.5]} 61... Bxh5 {[%clk 0:00:05.8]} 62. Kxh5 {[%clk 0:00:09.4]}
62... Rf7 {[%clk 0:00:05.6]} 63. Rg2 {[%clk 0:00:08.4]} 63... f4 {[%clk
0:00:06]} 64. Rf2 {[%clk 0:00:08.9]} 64... f3 {[%clk 0:00:06.6]} 65. Kg4 {[%clk
0:00:09.4]} 65... Kb6 {[%clk 0:00:07.3]} 66. Rxf3 {[%clk 0:00:10]} 66... Rg7+
{[%clk 0:00:07.7]} 67. Kf4 {[%clk 0:00:10.1]} 67... Rc7 {[%clk 0:00:08.4]} 68.
Re3 {[%clk 0:00:10.4]} 68... Kc6 {[%clk 0:00:08.6]} 69. Re4 {[%clk 0:00:11.3]}
69... Kb7 {[%clk 0:00:09]} 70. Rb4+ {[%clk 0:00:11.3]} 70... Kc8 {[%clk
0:00:09]} 71. Rd4 {[%clk 0:00:12.2]} 71... Rd7 {[%clk 0:00:08.9]} 72. Rxd7
{[%clk 0:00:12.2]} 72... Kxd7 {[%clk 0:00:09.8]} 1/2-1/2

[Event "Late-Titled-Tuesday-Blitz-September-26-2023"]
[Site "Chess.com"]
[Date "2023.09.26"]
[Round "11"]
[White "Goryachkina"]
[Black "Orest_Vovk"]
[Result "1/2-1/2"]
[WhiteElo "2671"]
[BlackElo "2586"]
[TimeControl "180+1"]
[EndTime "16:01:50 PDT"]
[Termination "Game drawn by repetition"]

1. Nf3 {[%clk 0:02:59.4]} 1... h6 {[%clk 0:02:59.3]} 2. h4 {[%clk 0:02:53.4]}
2... Nf6 {[%clk 0:02:57.7]} 3. d4 {[%clk 0:02:53.3]} 3... Ne4 {[%clk 0:02:52.4]}
4. Bf4 {[%clk 0:02:47.2]} 4... Rg8 {[%clk 0:02:51.6]} 5. Nbd2 {[%clk 0:02:46.4]}
5... g5 {[%clk 0:02:42]} 6. hxg5 {[%clk 0:02:45.2]} 6... Nxg5 {[%clk 0:02:31.1]}
7. e3 {[%clk 0:02:37.7]} 7... d6 {[%clk 0:02:16.7]} 8. Bd3 {[%clk 0:02:31.6]}
8... Bg4 {[%clk 0:02:07.2]} 9. c3 {[%clk 0:02:21.6]} 9... c6 {[%clk 0:01:54.6]}
10. Qc2 {[%clk 0:02:14.7]} 10... Nd7 {[%clk 0:01:32]} 11. O-O-O {[%clk
0:02:13.4]} 11... Qa5 {[%clk 0:01:27.6]} 12. Kb1 {[%clk 0:02:06.5]} 12... O-O-O
{[%clk 0:01:26.6]} 13. Bg3 {[%clk 0:01:58.5]} 13... Be6 {[%clk 0:01:11.5]} 14.
Nb3 {[%clk 0:01:51.6]} 14... Qa4 {[%clk 0:01:07.7]} 15. Nfd2 {[%clk 0:01:50.7]}
15... Nb6 {[%clk 0:00:40.7]} 16. c4 {[%clk 0:01:39]} 16... c5 {[%clk 0:00:33.9]}
17. dxc5 {[%clk 0:01:32]} 17... dxc5 {[%clk 0:00:34]} 18. Nxc5 {[%clk
0:01:29.6]} 18... Qxc2+ {[%clk 0:00:34]} 19. Kxc2 {[%clk 0:01:28.5]} 19... Bd7
{[%clk 0:00:18.5]} 20. Nxd7 {[%clk 0:01:22.4]} 20... Nxd7 {[%clk 0:00:19.4]} 21.
Nb3 {[%clk 0:01:22.4]} 21... Bg7 {[%clk 0:00:18]} 22. Rd2 {[%clk 0:00:50.9]}
22... Ne6 {[%clk 0:00:17.7]} 23. Rhd1 {[%clk 0:00:49.7]} 23... Nec5 {[%clk
0:00:15.2]} 24. Bh7 {[%clk 0:00:43.3]} 24... Nxb3 {[%clk 0:00:11.3]} 25. axb3
{[%clk 0:00:42.5]} 25... Rh8 {[%clk 0:00:10.9]} 26. Be4 {[%clk 0:00:38.6]} 26...
Nc5 {[%clk 0:00:09.3]} 27. Rxd8+ {[%clk 0:00:37]} 27... Rxd8 {[%clk 0:00:10.2]}
28. Rxd8+ {[%clk 0:00:35.4]} 28... Kxd8 {[%clk 0:00:11.1]} 29. Bf3 {[%clk
0:00:35.3]} 29... a5 {[%clk 0:00:09.5]} 30. Bf4 {[%clk 0:00:28.9]} 30... b6
{[%clk 0:00:09]} 31. g4 {[%clk 0:00:28.9]} 31... e6 {[%clk 0:00:09.2]} 32. Bg3
{[%clk 0:00:26.2]} 32... Kd7 {[%clk 0:00:09.4]} 33. Bg2 {[%clk 0:00:24.8]} 33...
Bf6 {[%clk 0:00:09.5]} 34. f4 {[%clk 0:00:24.4]} 34... Bg7 {[%clk 0:00:09.7]}
35. Be1 {[%clk 0:00:21.9]} 35... Na6 {[%clk 0:00:09.6]} 36. Be4 {[%clk
0:00:15.7]} 36... Nb4+ {[%clk 0:00:09.6]} 37. Kb1 {[%clk 0:00:14.7]} 37... Na6
{[%clk 0:00:09.5]} 38. Bc3 {[%clk 0:00:12.2]} 38... Bxc3 {[%clk 0:00:06.9]} 39.
bxc3 {[%clk 0:00:13.1]} 39... Nc5 {[%clk 0:00:07.2]} 40. Bc2 {[%clk 0:00:13.5]}
40... Kd6 {[%clk 0:00:07.1]} 41. Kc1 {[%clk 0:00:14]} 41... e5 {[%clk
0:00:06.9]} 42. Kd2 {[%clk 0:00:14.2]} 42... exf4 {[%clk 0:00:07.2]} 43. exf4
{[%clk 0:00:14.5]} 43... Ne6 {[%clk 0:00:06.9]} 44. Ke3 {[%clk 0:00:14.7]} 44...
f6 {[%clk 0:00:07.2]} 45. b4 {[%clk 0:00:13]} 45... axb4 {[%clk 0:00:06.8]} 46.
cxb4 {[%clk 0:00:13.3]} 46... Ng7 {[%clk 0:00:07.1]} 47. Bd3 {[%clk 0:00:09.3]}
47... h5 {[%clk 0:00:07.4]} 48. gxh5 {[%clk 0:00:07.4]} 48... Nxh5 {[%clk
0:00:08.3]} 49. Be4 {[%clk 0:00:06.7]} 49... Ng3 {[%clk 0:00:07.9]} 50. Bf3
{[%clk 0:00:05.8]} 50... Nf5+ {[%clk 0:00:07.9]} 51. Kd3 {[%clk 0:00:06.3]}
51... Ng3 {[%clk 0:00:07.9]} 52. Bg4 {[%clk 0:00:05.7]} 52... Kc6 {[%clk
0:00:07.5]} 53. Ke3 {[%clk 0:00:05.8]} 53... Kd6 {[%clk 0:00:06]} 54. Kf3 {[%clk
0:00:04.7]} 54... Nf1 {[%clk 0:00:05.8]} 55. Ke2 {[%clk 0:00:04.1]} 55... Ng3+
{[%clk 0:00:05.1]} 56. Kd3 {[%clk 0:00:04.7]} 56... Kc6 {[%clk 0:00:03.6]} 57.
Bf3+ {[%clk 0:00:05.1]} 57... Kd6 {[%clk 0:00:04]} 58. Bg2 {[%clk 0:00:05]}
58... Nf5 {[%clk 0:00:04]} 59. Bh3 {[%clk 0:00:04.8]} 59... Ng3 {[%clk
0:00:03.6]} 60. Bg4 {[%clk 0:00:04.9]} 1/2-1/2